[Event "Croatian 1A League 2022"]
[Site "Porec"]
[Date "2022.09.24"]
[Round "1.9"]
[White "Leventic, Ivan"]
[Black "Christiansen, Johan-Sebastian"]
[Result "0-1"]
[ECO "C47"]
[WhiteElo "2384"]
[BlackElo "2583"]
[Annotator "TA"]
[PlyCount "124"]
[EventDate "2022.09.24"]
[EventType "team-tourn"]
[EventCountry "CRO"]
[SourceTitle "playchess.com"]
[Source "ChessBase"]
[SourceQuality "1"]
[TimeControl "40/5400+30:1800+30"]

{[%evp 9,124,-3,30,5,11,12,4,6,6,8,10,8,9,0,0,0,12,6,5,6,8,4,7,0,0,0,0,0,0,0,0,0,0,0,0,-13,-13,-13,-13,-21,-16,-36,-15,-19,-21,-81,-56,-91,-69,-79,-16,-8,-16,-16,-8,-8,-8,-8,-8,-8,-8,-8,-8,-8,-8,-82,-82,-383,-378,-368,-239,-222,-224,-201,-192,-177,-176,-392,-383,-382,-362,-739,-778,-1323,-1267,-1425,-1408,-1427,-1140,-1343,-1160,-1472,-707,-1365,-1325,-1016,-787,-1159,-377,-1386,-1179,-2963,-2768,-1874,-872,-10888,-10881,-4017,-3695,-12279,-11457,-9916,-9358,-5077,-4986,-4779,-4779]} 1. e4 {[%emt 0:01:00]} e5 {[%emt 0:01:00]} 2. Nf3 {[%emt 0:00:30]} Nc6 {[%emt 0:00:00]} 3. Nc3 {[%emt 0:01:30]} Nf6 {[%emt 0:02:00][%cal Bg8f6,Bf6e4,Be4c3,Bc3d1][%mdl 32]} 4. d4 {[%emt 0:00:30]} exd4 {[%emt 0:01:30]} 5. Nxd4 {[%emt 0:00:30]} Nxe4 {[%emt 0:00:30]} 6. Nxc6 {[%emt 0:28:30] C47: Scotch Four Knights and Four Knights with 4 g3.} (6. Nxe4 {with more complications.} Qe7 7. f3 d5 8. Bb5) 6... Nxc3 {[%emt 0:00:30]} 7. Nxd8 {[%emt 0:00:00]} Nxd1 {[%emt 0:00:30]} 8. Nxf7 $1 {[%emt 0:00:00][%mdl 64] Decoy. The position is equal.} Kxf7 {[%emt 0:14:30]} (8... Nxf2 9. Nxh8 Nxh1 10. Be3 $16) 9. Bc4+ {[%emt 0:10:30]} Kf6 {[%emt 0:00:30][%cal Od7d5]} 10. Kxd1 {[%emt 0:00:30]} c6 {[%emt 0:01:30] [#]} 11. h4 $146 {[%emt 0:07:30]} ({Predecessor:} 11. Be3 d5 12. Bb3 Bd6 13. c4 dxc4 14. Bxc4 Be5 15. Kc2 Bf5+ 16. Bd3 Bxd3+ 17. Kxd3 {0-1 (37) Gadimbayli,A (2470)-Mamedyarov,S (2770) Chess.com INT 2021}) 11... d5 {[%emt 0:00:30]} 12. Bg5+ {[%emt 0:01:30]} Kf7 {[%emt 0:01:30]} 13. Bd3 {[%emt 0:00:30]} h5 {[%emt 0:35:30]} 14. Kd2 {[%emt 0:04:30]} Bc5 {[%emt 0:01:30]} 15. Rae1 {[%emt 0:01:30]} Bd7 {[%emt 0:02:30]} 16. c3 {[%emt 0:07:30]} Rhe8 {[%emt 0:01:30]} 17. Rxe8 {[%emt 0:08:30]} Rxe8 {[%emt 0:00:30]} 18. Re1 {[%emt 0:00:30]} Rxe1 {[%emt 0:06:30]} 19. Kxe1 $11 {[%emt 0:00:30][%mdl 4096] Endgame KBB-KBB} d4 {[%emt 0:01:30]} 20. Bd2 {[%emt 0:15:24]} Be6 {[%emt 0:00:30]} 21. a3 {[%emt 0:00:28]} Be7 {[%emt 0:03:30]} 22. cxd4 {[%emt 0:07:40]} Bxh4 {[%emt 0:00:30]} 23. Be2 {[%emt 0:01:25]} g6 {[%emt 0:00:30]} 24. Be3 {[%emt 0:00:44]} Bf6 {[%emt 0:02:30]} 25. Kd2 {[%emt 0:00:33]} Bd5 {[%emt 0:01:31]} 26. g3 {[%emt 0:00:25]} Ke6 {[%emt 0:00:43]} 27. Bf1 {[%emt 0:00:40]} (27. b4 $11 {keeps the balance.}) 27... g5 {[%emt 0:01:14] Black is more active.} 28. Bh3+ {[%emt 0:00:21]} Kd6 {[%emt 0:07:13]} 29. Bc8 {[%emt 0:00:38]} b6 {[%emt 0:00:54]} ({Black should try} 29... b5 $17 {White must now prevent ...Be6.} 30. f4 g4) 30. f4 {[%emt 0:00:29]} g4 {[%emt 0:01:33]} 31. Bf5 {[%emt 0:00:26]} Be6 {[%emt 0:04:24]} 32. Be4 {[%emt 0:00:07]} h4 {[%emt 0:01:16]} 33. gxh4 {[%emt 0:00:33]} ({Wrong is} 33. f5 $2 Bd5 34. Bf4+ Ke7 35. Bxd5 cxd5 36. gxh4 Bxd4 $19) 33... Bxh4 {[%emt 0:00:11] Threatening ...Bd5.} 34. f5 {[%emt 0:00:48]} Bd5 {[%emt 0:04:20]} 35. Bf4+ {[%emt 0:00:07]} Ke7 {[%emt 0:00:01]} 36. Ke3 {[%emt 0:00:25]} b5 {[%emt 0:01:20]} 37. Bb8 {[%emt 0:01:05]} (37. b3 $1 $11 {remains equal.}) 37... Bg5+ $17 {[%emt 0:00:13]} 38. Kd3 $2 {[%emt 0:00:30][%mdl 8192] Loses the game.} (38. Bf4 $17 Kf6 39. Bxg5+ Kxg5 40. Bc2) 38... a5 $19 {[%emt 0:00:55]} 39. Be5 {[%emt 0:00:21]} Bc1 {[%emt 0:00:44]} 40. Kc2 {[%emt 0:00:00] [#]} Be3 $1 {[%emt 0:00:00]} ({Stronger than} 40... Bxe4+ 41. Kxc1 Bxf5 42. Bg3 $17) 41. f6+ {[%emt 0:13:29]} Kf7 {[%emt 0:04:58]} 42. Bf5 {[%emt 0:00:23] [#]} Bf3 {[%emt 0:01:30] ...Bf2 is the strong threat.} 43. a4 $2 {[%emt 0:13:41]} (43. Kd3 {was forced.} Bc1 44. Kc2) 43... bxa4 {[%emt 0:04:30]} 44. Kd3 {[%emt 0:03:53]} Bc1 {[%emt 0:09:05]} 45. d5 $2 {[%emt 0:00:29]} (45. Kc2 a3 46. bxa3 (46. Kxc1 $2 a2 $19) 46... Bxa3 47. Bd7) 45... cxd5 {[%emt 0:00:32] Hoping for ...Bg5.} 46. Bd7 {[%emt 0:00:17]} a3 {[%emt 0:06:10]} 47. bxa3 {[%emt 0:00:11]} Bxa3 {[%emt 0:00:02]} 48. Ke3 {[%emt 0:01:06]} Bc1+ {[%emt 0:00:56]} 49. Kf2 {[%emt 0:00:22]} Bg5 {[%emt 0:04:26]} 50. Bc3 {[%emt 0:00:15]} Bxf6 {[%emt 0:01:00]} 51. Bxa5 {[%emt 0:00:11]} Bh4+ {[%emt 0:01:07]} 52. Ke3 {[%emt 0:00:29]} Bg5+ {[%emt 0:00:02]} 53. Kd4 {[%emt 0:00:58]} Bf6+ $2 {[%emt 0:00:40]} (53... g3 {( -> ...g2)} 54. Bb6 g2) 54. Kc5 $2 {[%emt 0:00:43]} (54. Ke3 Bg5+ 55. Kf2) 54... g3 {[%emt 0:01:33][%cal Bg4g3,Bg3g2][%mdl 32] Black is clearly winning.} 55. Be1 {[%emt 0:00:46]} g2 {[%emt 0:00:18]} 56. Bf2 {[%emt 0:00:10]} d4 {[%emt 0:01:32][%cal Bd5d4,Bd4d3,Bd3d2][%mdl 32]} 57. Bb5 {[%emt 0:01:16]} Be4 {[%emt 0:00:54]} 58. Be2 {[%emt 0:00:16]} d3 {[%emt 0:00:41]} 59. Bg4 {[%emt 0:00:58]} Be5 {[%emt 0:00:52]} 60. Bg1 {[%emt 0:00:25]} Kg6 {[%emt 0:00:29]} 61. Be3 {[%emt 0:00:24]} d2 {[%emt 0:00:39]} 62. Kc4 {[%emt 0:00:09]} Bc2 {[%emt 0:00:35] Weighted Error Value: White=0.66/Black=0.08 (flawless)} 0-1

[Event "Croatian 1A League 2022"]
[Site "Porec"]
[Date "2022.09.24"]
[Round "1.10"]
[White "Martinovic, Sasa"]
[Black "Zivkovic, Vjekoslav"]
[Result "1/2-1/2"]
[ECO "D94"]
[WhiteElo "2546"]
[BlackElo "2364"]
[Annotator "TA"]
[PlyCount "71"]
[EventDate "2022.09.24"]
[EventType "team-tourn"]
[EventCountry "CRO"]
[SourceTitle "playchess.com"]
[Source "ChessBase"]
[SourceQuality "1"]
[TimeControl "40/5400+30:1800+30"]

{[%evp 23,71,31,33,27,22,28,35,37,45,38,40,42,54,26,41,39,43,48,42,23,24,38,35,35,41,0,0,0,0,0,0,0,0,0,0,0,0,0,0,0,0,0,0,-5,0,-25,-34,-27,-1,-24]} 1. d4 {[%emt 0:01:00]} d5 {[%emt 0:01:00]} 2. c4 {[%emt 0:00:00]} c6 {[%emt 0:00:00]} 3. Nf3 {[%emt 0:00:00]} Nf6 {[%emt 0:00:00]} 4. e3 {[%emt 0:00:30]} a6 {[%emt 0:01:30]} 5. Nc3 {[%emt 0:01:30]} g6 {[%emt 0:03:30]} 6. Bd3 {[%emt 0:01:30]} Bg7 {[%emt 0:00:30]} 7. O-O {[%emt 0:02:30]} O-O {[%emt 0:00:30]} 8. b3 {[%emt 0:04:30]} Bg4 {[%emt 0:08:30]} 9. h3 {[%emt 0:01:30]} Bxf3 {[%emt 0:03:30]} 10. Qxf3 {[%emt 0:00:00]} Re8 {[%emt 0:01:30]} 11. Bb2 {[%emt 0:01:00]} e6 {[%emt 0:11:30]} 12. Rfd1 {[%emt 0:00:30]} Nbd7 {[%emt 0:04:30]} 13. Rac1 {[%emt 0:01:30] D94: Grünfeld: 4 Nf3 Bg7 5 e3.} Qe7 {[%emt 0:04:30]} 14. Bf1 {[%emt 0:01:30]} Rac8 {[%emt 0:09:30]} 15. Qe2 {[%emt 0:02:30] [#] White is slightly better.} Ne4 $146 {[%emt 0:09:30]} ({Predecessor:} 15... Red8 16. Rc2 h5 17. Qd2 Nf8 18. Qc1 N8h7 19. a4 Bf8 20. Bd3 Qc7 21. Ba3 Bxa3 22. Qxa3 {½-½ (46) Martinovic,S (2539)-Malakhov,V (2662) Mali Losinj 2019}) 16. Nxe4 {[%emt 0:00:30]} dxe4 {[%emt 0:01:30]} 17. Qd2 {[%emt 0:02:30]} Red8 {[%emt 0:04:30]} 18. Qa5 {[%emt 0:01:30]} f5 {[%emt 0:07:30]} 19. Ba3 {[%emt 0:03:30]} Qf7 {[%emt 0:00:30]} 20. d5 {[%emt 0:05:30]} b6 {[%emt 0:14:00]} 21. Qd2 {[%emt 0:08:30]} ({Don't play} 21. Qxa6 Ra8 22. Qb7 (22. dxe6 Qxe6 23. Qb7 Rab8 $11) 22... c5 23. dxe6 Qxe6 $11) (21. Qa4 $5 {[%cal Rd5c6]}) 21... c5 {[%emt 0:01:42]} 22. b4 {[%emt 0:02:30]} e5 {[%emt 0:05:14]} 23. Rb1 {[%emt 0:00:30]} Bf8 {[%emt 0:00:34]} 24. bxc5 {[%emt 0:09:30]} Bxc5 {[%emt 0:00:07]} 25. Bb2 {[%emt 0:00:30]} Bd6 {[%emt 0:00:44]} 26. Bc3 {[%emt 0:04:30][%cal Oc4c5]} Rb8 {[%emt 0:01:23]} 27. a4 {[%emt 0:01:30]} a5 {[%emt 0:00:28]} 28. Rb5 {[%emt 0:00:30]} Nc5 {[%emt 0:02:28]} 29. Qc2 {[%emt 0:00:30]} Qc7 {[%emt 0:00:29]} 30. Rdb1 {[%emt 0:01:30]} h5 {[%emt 0:00:47]} 31. Be2 {[%emt 0:00:30]} Kh7 {[%emt 0:00:03]} 32. Kf1 {[%emt 0:02:30][%cal Bg1f1,Bf1e1,Be1d2][%mdl 32]} Kh6 {[%emt 0:00:17]} 33. Ke1 {[%emt 0:00:30]} Rf8 {[%emt 0:01:23]} 34. Kd2 {[%emt 0:00:30]} f4 {[%emt 0:00:32]} 35. Rxc5 {[%emt 0:30:17]} fxe3+ {[%emt 0:00:43]} 36. fxe3 {[%emt 0:00:03] Weighted Error Value: White=0.05 (flawless) /Black=0.04 (flawless)} 1/2-1/2

[Event "Croatian 1A League 2022"]
[Site "Porec"]
[Date "2022.09.24"]
[Round "1.11"]
[White "Medak, Bojan"]
[Black "Rogic, Davor"]
[Result "0-1"]
[ECO "A28"]
[WhiteElo "2353"]
[BlackElo "2458"]
[Annotator "TA"]
[PlyCount "60"]
[EventDate "2022.09.24"]
[EventType "team-tourn"]
[EventCountry "CRO"]
[SourceTitle "playchess.com"]
[Source "ChessBase"]
[SourceQuality "1"]
[TimeControl "40/5400+30:1800+30"]

{[%evp 11,60,27,16,18,14,9,30,15,19,19,25,7,18,0,2,0,0,0,0,-13,0,0,0,0,0,0,0,-43,-12,-80,-91,-133,-139,-141,-110,-131,-114,-115,-121,-146,-139,-273,-274,-267,-264,-284,-283,-331,-325,-369,-366]} 1. c4 {[%emt 0:01:00]} e5 {[%emt 0:03:00]} 2. Nc3 {[%emt 0:00:00]} Nf6 {[%emt 0:00:30]} 3. Nf3 {[%emt 0:00:00]} Nc6 {[%emt 0:00:00]} 4. e4 {[%emt 0:01:30]} d6 {[%emt 0:11:00]} 5. d4 {[%emt 0:02:30]} Bg4 {[%emt 0:02:30]} 6. d5 {[%emt 0:01:30]} Nd4 {[%emt 0:02:30]} 7. Be2 {[%emt 0:01:30] A28: English Opening: Four Knights Variation.} Nxe2 {[%emt 0:02:30]} 8. Qxe2 {[%emt 0:00:30]} Be7 {[%emt 0:00:30]} 9. h3 {[%emt 0:00:30] White has an edge.} Bd7 {[%emt 0:01:30]} 10. O-O {[%emt 0:10:30]} O-O {[%emt 0:02:30]} 11. Ne1 {[%emt 0:01:30]} c6 {[%emt 0:12:30] [#]} 12. a4 $146 {[%emt 0:06:30]} ({Predecessor:} 12. dxc6 bxc6 13. Nc2 Be6 14. Rd1 Qc7 15. Ne3 Rfd8 16. b3 g6 17. Qf3 Ne8 18. Bb2 {½-½ (37) Rallabandi,P (2472)-Coklin,M (2453) ICCF email 2019}) 12... Qc7 {[%emt 0:07:30]} 13. Nc2 {[%emt 0:09:30]} cxd5 {[%emt 0:04:30]} 14. cxd5 {[%emt 0:03:30]} Rfc8 {[%emt 0:01:30]} 15. Na3 {[%emt 0:03:30]} Qc5 {[%emt 0:13:30]} 16. Bd2 {[%emt 0:07:30]} a6 {[%emt 0:03:30]} 17. Rfc1 {[%emt 0:04:30]} Qb4 {[%emt 0:01:30]} 18. Nc2 {[%emt 0:10:30]} Qb3 {[%emt 0:03:30]} (18... Qxb2 $2 19. Rab1 Qxc3 20. Bxc3 Rxc3 21. Rxb7 $18) 19. Qd3 {[%emt 0:01:30]} Bd8 {[%emt 0:05:30][%cal Od7a4]} (19... Qxb2 $2 20. Rcb1 Qxa1 21. Nxa1 $18) (19... Bxa4 $5 20. Rxa4 Rxc3 $1 21. Qxc3 Qxa4 $11) 20. Rcb1 {[%emt 0:16:06] [#]} (20. Kh2 $11) 20... Bxa4 $1 $17 {[%emt 0:03:29]} 21. Rc1 {[%emt 0:09:51]} (21. Rxa4 Rxc3) 21... Bd7 {[%emt 0:01:45]} 22. Ne3 {[%emt 0:01:21]} Rc5 {[%emt 0:04:44]} (22... Qxb2 $2 23. Rcb1 Qxa1 24. Rxa1 $18) 23. Qb1 {[%emt 0:05:01]} Ra5 {[%emt 0:02:06] Black is much more active.} 24. Rxa5 {[%emt 0:01:02]} Bxa5 {[%emt 0:00:06]} 25. Qd3 {[%emt 0:00:55]} Rc8 {[%emt 0:01:11]} ({Don't do} 25... Qxb2 26. Nc4 (26. Rb1 Bb5 $17) 26... Qb4 27. Nd1 $18) 26. Nf5 {[%emt 0:00:14]} (26. Qb1 $17 {is a better defense.}) 26... Bxf5 $19 {[%emt 0:00:30]} 27. exf5 {[%emt 0:00:02][%cal Oc3d1]} Bxc3 {[%emt 0:02:29]} ({Avoid the trap} 27... Qxb2 $2 28. Rb1 Rxc3 29. Rxb2 $19) 28. bxc3 {[%emt 0:01:14]} Qxd5 {[%emt 0:00:16]} 29. Qe2 {[%emt 0:00:34]} Qe4 {[%emt 0:00:44]} 30. Be3 {[%emt 0:00:35]} Qxf5 {[%emt 0:00:52] Weighted Error Value: White=0.26 (precise) /Black=0.05 (flawless)} 0-1

[Event "Croatian 1A League 2022"]
[Site "Porec"]
[Date "2022.09.24"]
[Round "1.12"]
[White "Cvitan, Ognjen"]
[Black "Mrkonjic, Nenad"]
[Result "1-0"]
[ECO "D13"]
[WhiteElo "2445"]
[BlackElo "2347"]
[Annotator "TA"]
[PlyCount "135"]
[EventDate "2022.09.24"]
[EventType "team-tourn"]
[EventCountry "CRO"]
[SourceTitle "playchess.com"]
[Source "ChessBase"]
[SourceQuality "1"]
[TimeControl "40/5400+30:1800+30"]

{[%evp 16,135,27,35,119,0,79,5,69,33,30,30,26,20,38,24,18,10,23,30,27,25,43,33,40,36,52,58,58,49,52,25,58,41,44,47,40,28,30,18,12,6,14,10,12,10,8,13,16,17,28,23,89,7,35,39,81,81,81,82,82,66,96,89,184,184,184,180,180,174,450,552,518,525,483,455,734,716,691,322,730,409,429,184,712,695,1376,1354,1363,603,479,187,1291,1191,1240,342,240,0,1095,483,1286,1053,1302,1202,1311,1498,1372,854,1231,1294,1294,1110,743,734,2660,2109,10032,10103,8085,7184,6500,5045]} 1. d4 {[%emt 0:02:00]} d5 {[%emt 0:01:00]} 2. c4 {[%emt 0:02:30]} c6 {[%emt 0:00:30]} 3. Nf3 {[%emt 1:11:51]} Nf6 {[%emt 1:01:30]} 4. Nc3 {[%emt 0:01:03]} a6 {[%emt 0:00:30]} 5. cxd5 {[%emt 0:00:30]} cxd5 {[%emt 0:00:30]} 6. Bf4 {[%emt 0:00:46]} Nc6 {[%emt 0:00:30]} 7. Rc1 {[%emt 0:00:39]} Bf5 {[%emt 0:00:30]} 8. e3 {[%emt 0:00:38]} e6 {[%emt 0:00:30] 8...e6 scores better than 8...Rc8.} 9. Qb3 {[%emt 0:00:46]} Be7 {[%emt 0:00:30] D13: Slav Defence: Exchange variation without ...Bf5.} (9... Ra7 $14) 10. Be2 {[%emt 0:00:39]} ({Only move:} 10. Qxb7 $16 Na5 11. Qc7) 10... O-O {[%emt 0:00:30]} (10... Na5 $11 11. Qd1 h6) 11. O-O {[%emt 0:01:02]} (11. Qxb7 $16 Na5 12. Qc7) 11... Bd6 {[%emt 0:00:30]} (11... Na5 $11 12. Qd1 h6) 12. Bxd6 {[%emt 0:00:04]} Qxd6 {[%emt 0:00:00]} 13. Na4 {[%emt 0:00:48]} (13. Qxb7 $2 Na5 14. Nb5 axb5 $19) 13... b5 {[%emt 0:00:00]} 14. Nc5 {[%emt 0:02:42] [#]} Be4 $146 {[%emt 0:00:30]} ({Predecessor:} 14... Bg4 15. h3 Bh5 16. Qd1 Rfc8 17. Nd2 Bxe2 18. Qxe2 e5 19. dxe5 Nxe5 20. Nd3 Nxd3 21. Qxd3 {1-0 (51) Tran,T (2391)-Flumbort,A (2458) Kecskemet 2014}) 15. Nd3 {[%emt 0:02:09]} Rfc8 {[%emt 0:00:30]} 16. h3 {[%emt 0:00:38]} Bxf3 {[%emt 0:00:30]} 17. Bxf3 {[%emt 0:00:28]} Nd7 {[%emt 0:00:30]} 18. Rc3 {[%emt 0:00:30]} Ne7 {[%emt 0:01:30]} 19. Rfc1 {[%emt 0:00:30]} Rxc3 {[%emt 0:00:30]} 20. Rxc3 {[%emt 0:00:30]} Rc8 {[%emt 0:00:30]} 21. Rxc8+ {[%emt 0:00:30]} Nxc8 {[%emt 0:00:30]} 22. Qc3 {[%emt 0:00:30]} Ne7 {[%emt 0:00:30]} 23. Qa5 {[%emt 0:00:30] Threatens to win with Qd8+.} Nb8 {[%emt 0:00:30]} 24. Bd1 {[%emt 0:00:30]} Nec6 {[%emt 0:00:30]} 25. Qb6 {[%emt 0:00:30]} Qd8 {[%emt 0:01:30]} 26. Qxd8+ {[%emt 0:00:30]} Nxd8 $14 {[%emt 0:00:00][%mdl 4096] Endgame KBN-KNN} 27. a4 {[%emt 0:00:54]} bxa4 {[%emt 0:00:00]} 28. Bxa4 {[%emt 0:00:39]} a5 {[%emt 0:00:30]} 29. Kf1 {[%emt 0:00:47]} Kf8 {[%emt 0:00:30]} 30. Ke2 {[%emt 0:00:30]} Ke7 {[%emt 0:00:30]} 31. Kd2 {[%emt 0:00:32]} Nd7 {[%emt 0:01:30]} 32. Bb5 {[%emt 0:04:00]} Kd6 {[%emt 0:11:06]} 33. Kc3 {[%emt 0:00:44]} f6 {[%emt 0:01:20]} (33... Nb6 $11 {remains equal.}) 34. f4 {[%emt 0:03:18] White is more active.} ({Better is} 34. Bxd7 $16 Kxd7 35. Kb3) 34... Nb6 {[%emt 0:03:02]} 35. Nc5 {[%emt 0:00:24]} e5 {[%emt 0:00:28]} 36. fxe5+ {[%emt 0:00:53]} fxe5 {[%emt 0:00:03]} 37. Nb3 $1 {[%emt 0:00:12]} exd4+ {[%emt 0:00:13]} 38. exd4 {[%emt 0:00:04]} (38. Nxd4 Nb7 $11) 38... a4 {[%emt 0:05:28]} 39. Nc5 {[%emt 0:00:20]} Ne6 {[%emt 0:01:07] [#]} (39... g5 $16) 40. Nxe6 $1 $18 {[%emt 0:00:00]} ({Worse is} 40. Nxa4 Nxa4+ 41. Bxa4 Nf4 $11) 40... Kxe6 {[%emt 0:00:00] KB-KN} 41. Kb4 {[%emt 0:04:00] Kc5 is the strong threat.} Kd6 {[%emt 0:01:13] [#]} 42. h4 $1 {[%emt 0:02:30][%cal Bh3h4,Bh4h5][%mdl 32]} ({Don't do} 42. Bxa4 Nc4 $16) 42... h6 $2 {[%emt 0:00:30]} (42... Nc8 {was necessary.} 43. Bxa4 (43. Kxa4 h6 $16) 43... h6) 43. h5 {[%emt 0:00:30]} Na8 {[%emt 0:00:00]} 44. Bxa4 {[%emt 0:00:30]} Nc7 {[%emt 0:00:00]} 45. Kc3 {[%emt 0:01:30] And now Kd2 would win.} Na8 {[%emt 0:04:30]} (45... Ne6 $142 46. g4 Nf4) 46. Bd1 {[%emt 0:01:30]} Nb6 {[%emt 0:00:30]} 47. b3 {[%emt 0:02:30]} (47. Be2 $142 Nc8 48. b4) 47... Kc6 $2 {[%emt 0:00:00]} (47... Nd7 48. b4 Nb6) 48. Be2 {[%emt 0:00:30]} Nc8 {[%emt 0:00:00]} 49. Bd3 {[%emt 0:01:30]} (49. b4 $142 {Strongly threatening Kd2.} Kb6 50. g4) 49... Nd6 $2 {[%emt 0:00:30]} (49... Kc7 50. Bg6 Kb6) 50. Kd2 {[%emt 0:00:30]} Nc8 {[%emt 0:00:30]} 51. Ke3 {[%emt 0:00:30]} Kd6 {[%emt 0:00:30]} 52. Kf4 {[%emt 0:00:00]} (52. b4 $142 Nb6 53. Kf4) 52... Ne7 {[%emt 0:00:30]} 53. Bb5 {[%emt 0:00:00]} (53. b4) 53... Ke6 $2 {[%emt 0:02:30]} (53... g5+ 54. hxg6 Nxg6+ 55. Ke3 Nh4) 54. Be8 {[%emt 0:03:30]} Nc8 {[%emt 0:00:30]} 55. Bg6 $2 {[%emt 0:00:30]} (55. b4 Nd6 56. Bc6) 55... Ne7 {[%emt 0:02:30]} 56. Be8 {[%emt 0:01:30] Inhibits Nc6.} (56. b4) 56... Nc8 $1 {[%emt 0:00:00]} 57. g3 {[%emt 0:01:09]} (57. b4 $142 Nd6 58. Bc6) 57... Ke7 {[%emt 0:10:00]} (57... Nd6 $142) 58. Bg6 {[%emt 0:00:36]} Kf6 {[%emt 0:00:30]} 59. b4 {[%emt 0:03:33][%cal Bb3b4,Bb4b5,Bb5b6,Bb6b7][%mdl 32]} Na7 {[%emt 0:04:30]} 60. Be8 {[%emt 0:00:19]} Ke7 {[%emt 0:00:30]} 61. Ba4 {[%emt 0:00:11]} Ke6 {[%emt 0:00:30]} 62. b5 {[%emt 0:00:34] White wants to mate with b6.} Nc8 {[%emt 0:00:30]} 63. Bc2 {[%emt 0:00:25] Intending Bf5+ and mate.} Nb6 {[%emt 0:00:30]} 64. Bh7 {[%emt 0:00:20]} Na4 {[%emt 0:00:41]} 65. Bg8+ {[%emt 0:00:26]} Kd6 {[%emt 0:00:19]} 66. Kf5 {[%emt 0:01:34]} Nc3 {[%emt 0:00:30]} 67. b6 {[%emt 0:00:06]} Ne2 {[%emt 0:10:52]} 68. b7 {[%emt 0:01:42] Weighted Error Value: White=0.69/Black=0.30} 1-0

[Event "Croatian 1A League 2022"]
[Site "Porec"]
[Date "2022.09.24"]
[Round "1.13"]
[White "Vavulin, Maxim"]
[Black "Motylev, Alexander"]
[Result "1/2-1/2"]
[WhiteElo "2550"]
[BlackElo "2635"]
[Annotator "TA"]
[PlyCount "32"]
[EventDate "2022.09.24"]
[EventType "team-tourn"]
[EventCountry "CRO"]
[SourceTitle "playchess.com"]
[Source "ChessBase"]
[SourceQuality "1"]
[TimeControl "40/5400+30:1800+30"]

{[%evp 12,18,10,19,31,12,2,4,10]} 1. e4 {[%emt 0:01:00]} e5 {[%emt 0:01:00]} 2. Nf3 {[%emt 0:00:00]} Nc6 {[%emt 0:00:00]} 3. Bb5 {[%emt 0:00:00]} Nf6 {[%emt 0:00:00]} 4. O-O {[%emt 0:02:30][%cal Bh1f1,Bf1e1,Be1e5][%mdl 32]} Nxe4 {[%emt 0:00:30]} 5. Re1 {[%emt 0:00:00]} Nd6 {[%emt 0:00:30]} 6. Nxe5 {[%emt 0:00:00]} Be7 {[%emt 0:10:30]} 7. Bf1 {[%emt 0:08:30]} Nf5 {[%emt 0:00:30] C67: Ruy Lopez: Berlin Defence: 4 0-0 Nxe4.} 8. c3 {[%emt 0:00:30]} Nxe5 {[%emt 0:00:30]} 9. Rxe5 {[%emt 0:00:30]} d6 {[%emt 0:01:30] [#] Not much happened in this game.  Weighted Error Value: White=0.08 (flawless) /Black=0.05 (flawless)} {Predecessor:} 10. Re1 $146 O-O 11. d4 d5 12. Bf4 Bd6 13. Qf3 Nh4 14. Qg3 Nf5 15. Qf3 Nh4 16. Qg3 Nf5 {½-½ (16) Karjakin,S (2743)-Carlsen,M (2865) Wijk aan Zee 2022} 1/2-1/2